fUST/lending_fUST_20250613
["ID","MTS","AMOUNT","RATE_DAILY","PERIOD"]
[365525919,1749750641001,-187.0,0.00023736,2]
[365525920,1749750641011,-206.0,0.0002374,2]
[365525921,1749750641020,-228.69843697,0.00023762,9]
[365525922,1749750641030,-258.6289082,0.00023773,2]
[365525923,1749750641039,-160.14230904,0.00023773,2]
[365525924,1749750641048,-473.90124323,0.00023773,2]
[365525925,1749750641057,-500.0,0.00023773,2]
[365525926,1749750641067,-500.0,0.00023773,2]
[365525927,1749750641076,-376.21865756,0.00023773,2]
[365525928,1749750641085,-500.0,0.00023773,2]
[365525929,1749750641094,-500.0,0.00023773,2]
[365525930,1749750641103,-502.17117778,0.00023773,2]
[365525931,1749750641113,-500.0,0.00023773,2]
[365525932,1749750641122,-500.0,0.00023773,2]
[365525933,1749750641132,-500.0,0.00023773,2]
[365525934,1749750641141,-500.0,0.00023773,2]
[365525935,1749750641153,-500.0,0.00023773,2]
[365525936,1749750641163,-500.0,0.00023773,2]
[365525937,1749750641172,-500.0,0.00023773,2]
[365525938,1749750641181,-500.0,0.00023773,2]
[365525939,1749750641191,-500.0,0.00023773,2]
[365525940,1749750641200,-500.0,0.00023773,2]
[365525941,1749750641210,-500.0,0.00023773,2]
[365525942,1749750641219,-347.47889072,0.00023773,2]
[365525943,1749750641229,-506.21001811,0.00023773,2]
[365525944,1749750641238,-603.34954405,0.00023773,2]
[365525945,1749750641249,-41723.98941284,0.00023788,2]
[365525946,1749750641259,-31447.20844292,0.000238,2]
[365525947,1749750641341,-18214.1174826,0.000238,2]
[365525948,1749750641393,235.95741445,0.00019964,2]
[365525949,1749750641427,-572.60982878,0.000238,2]
[365525950,1749750641439,-1805.5625,0.000238,2]
[365525964,1749750646633,-168.39379902,0.0002219,2]
[365525965,1749750646652,-1864.28,0.0002289,10]
[365525966,1749750646662,-11996.92427338,0.000238,2]
[365526112,1749750895134,205.830163,0.00013699,2]
[365526146,1749751007134,1793.0,0.000201,19]
[365526156,1749751414758,177.55994345,0.0001953,2]
[365526157,1749751417545,191.99677841,0.0001953,2]
[365526158,1749751544918,190.8864285,0.00024658,120]
[365526161,1749751595892,726.27609543,0.000189,2]
[365526221,1749751831816,-159.645973,0.00020009,2]
[365526223,1749751831826,-281.615005,0.00020051,2]
[365526225,1749751831835,-666.0,0.00020117,2]
[365526227,1749751831845,-500.0,0.00020164,2]
[365526229,1749751831854,-205.830163,0.00020187,2]
[365526231,1749751831863,-300.0,0.00020517,2]
[365526233,1749751831872,-300.0,0.00020517,2]
[365526235,1749751831881,-335.8953067,0.00020517,2]
[365526237,1749751831893,-635.39202483,0.00020517,2]
[365526267,1749751837953,-228.71266847,0.00020517,2]
[365526268,1749751837963,-7761.74978,0.00020518,2]
[365526269,1749751837974,-176.9129097,0.00020877,2]
[365526270,1749751837984,-250.7541781,0.00021322,2]
[365526271,1749751837994,-4647.1604408,0.00021338,2]
[365526272,1749751838003,-1201.83,0.00021488,2]
[365526273,1749751838013,-212.33176015,0.00021587,2]
[365526274,1749751838023,-460.0,0.00021616,4]
[365526275,1749751838033,-460.0,0.00021616,4]
[365526276,1749751838043,-460.0,0.00021626,4]
[365526277,1749751838052,-180.9,0.00021626,2]
[365526278,1749751838061,-584.6112494,0.00021626,4]
[365526279,1749751838070,-460.0,0.00021626,4]
[365526280,1749751838080,-10448.7505658,0.00021626,2]
[365526281,1749751838090,-570.45,0.00021687,4]
[365526282,1749751838100,-460.0,0.00021687,2]
[365526283,1749751838109,-500.904869,0.00021773,2]
[365526284,1749751838119,-460.0,0.0002189,4]
[365526285,1749751838129,-462.84871738,0.0002189,4]
[365526286,1749751838139,-460.0,0.000219,4]
[365526287,1749751838149,-460.0,0.000219,4]
[365526288,1749751838159,-204.53682289,0.000219,6]
[365526289,1749751838174,-570.45,0.00021961,4]
[365526290,1749751838184,-460.0,0.00021961,2]
[365526291,1749751838194,-183.0,0.00022,2]
[365526292,1749751838205,-204.53682288,0.00022043,6]
[365526293,1749751838216,-212.33176009,0.00022048,2]
[365526294,1749751838226,-229.7508257,0.00022099,2]
[365526295,1749751838237,-160.0,0.00022099,2]
[365526296,1749751838247,-160.0,0.00022099,2]
[365526297,1749751838257,-160.0,0.00022099,2]
[365526298,1749751838267,-844.79171733,0.00022099,2]
[365526299,1749751838277,-160.0,0.00022099,2]
[365526300,1749751838287,-398.05615219,0.00022164,4]
[365526301,1749751838297,-460.0,0.00022173,4]
[365526302,1749751838306,-460.0,0.00022173,4]
[365526303,1749751838316,-204.53682288,0.00022186,6]
[365526304,1749751838325,-570.45,0.00022235,4]
[365526305,1749751838335,-460.0,0.00022235,2]
[365526306,1749751838345,-204.53682288,0.00022329,7]
[365526307,1749751838354,-318.0,0.00022329,2]
[365526308,1749751838363,-420.0,0.00022329,2]
[365526309,1749751838373,-500.0,0.00022356,2]
[365526310,1749751838382,-460.0,0.00022447,4]
[365526311,1749751838396,-460.0,0.00022447,4]
[365526312,1749751838405,-204.53682288,0.00022471,7]
[365526313,1749751838418,-570.45,0.00022509,4]
[365526314,1749751838428,-400.0,0.00022509,2]
[365526315,1749751838438,-212.33176009,0.0002251,2]
[365526316,1749751838448,-204.53682288,0.00022614,7]
[365526317,1749751838457,-178.56666777,0.00022721,4]
[365526318,1749751838467,-460.0,0.00022721,4]
[365526319,1749751838477,-5000.0,0.00022751,2]
[365526320,1749751838488,-207.4,0.00022751,2]
[365526321,1749751838499,-151.0,0.00022751,2]
[365526322,1749751838509,-355.86796555,0.00022751,2]
[365526358,1749751840099,-735.29,0.00021616,2]
[365526361,1749751840114,-735.29,0.0002189,2]
[365526362,1749751840128,-735.29,0.00022164,2]
[365526363,1749751840142,-15.78760662,0.00022438,2]
[365526410,1749751842901,-719.50239338,0.00022438,2]
[365526411,1749751842914,-735.29,0.00022712,2]
[365526413,1749751842926,-2813.2707381,0.00022751,2]
[365526415,1749751842936,-204.53682288,0.00022757,7]
[365526416,1749751842948,-570.45,0.00022783,4]
[365526417,1749751842962,-168.0,0.00022834,2]
[365526420,1749751842973,-204.53682288,0.000229,8]
[365526421,1749751842984,-212.33176009,0.00022971,2]
[365526423,1749751842996,-735.29,0.00022986,2]
[365526425,1749751843007,-460.0,0.00022995,4]
[365526427,1749751843019,-1249.21,0.00023,2]
[365526428,1749751843031,-204.53682288,0.00023043,8]
[365526429,1749751843041,-570.45,0.00023057,4]
[365526430,1749751843052,-443.72833664,0.00023107,2]
[365526431,1749751843063,-204.53682288,0.00023186,8]
[365526432,1749751843073,-735.29,0.0002326,2]
[365526433,1749751843083,-460.0,0.00023269,4]
[365526434,1749751843094,-209.204,0.00023322,2]
[365526435,1749751843104,-963.0,0.00023322,2]
[365526436,1749751843115,-653.0,0.00023322,2]
[365526437,1749751843125,-2160.0,0.00023322,2]
[365526438,1749751843137,-204.53682288,0.00023329,9]
[365526439,1749751843148,-570.45,0.00023331,4]
[365526440,1749751843159,-212.33176009,0.00023432,2]
[365526441,1749751843173,-159.645973,0.00023434,2]
[365526442,1749751843185,-2403.66,0.00023441,2]
[365526443,1749751843196,-443.72833664,0.00023444,2]
[365526444,1749751843207,-204.53682288,0.00023471,9]
[365526445,1749751843219,-1201.762778,0.00023493,3]
[365526446,1749751843230,-224.0,0.000235,2]
[365526447,1749751843242,-5888.0,0.00023519,2]
[365526448,1749751843255,-735.29,0.00023534,2]
[365526449,1749751843267,-460.0,0.00023543,4]
[365526450,1749751843279,-835.15920933,0.00023594,2]
[365526451,1749751843290,-424.26423502,0.00023605,2]
[365526452,1749751843300,-570.45,0.00023605,4]
[365526453,1749751843311,-204.53682288,0.00023614,9]
[365526454,1749751843322,-1669.06,0.0002369,10]
[365526455,1749751843332,-1390.89,0.0002369,10]
[365526456,1749751843342,-1159.07,0.0002369,10]
[365526457,1749751843352,-302.85999306,0.00023717,2]
[365526458,1749751843363,-302.85999305,0.00023738,2]
[365526459,1749751843374,-224.0,0.00023745,2]
[365526460,1749751843386,-204.53682288,0.00023757,9]
[365526461,1749751843398,-302.85999305,0.00023759,2]
[365526462,1749751843409,-302.85999305,0.00023779,2]
[365526463,1749751843420,-505.23537389,0.00023799,2]
[365526464,1749751843431,-160.0,0.00023799,2]
[365526465,1749751843440,-239.64431245,0.00023799,2]
[365526466,1749751843450,-500.0,0.00023799,2]
[365526467,1749751843461,-500.0,0.00023799,2]
[365526468,1749751843473,-500.0,0.00023799,2]
[365526469,1749751843484,-500.0,0.00023799,2]
[365526470,1749751843495,-500.0,0.00023799,2]
[365526471,1749751843507,-500.0,0.00023799,2]
[365526472,1749751843517,-500.0,0.00023799,2]
[365526473,1749751843527,-500.0,0.00023799,2]
[365526474,1749751843538,-500.0,0.00023799,2]
[365526475,1749751843548,-500.0,0.00023799,2]
[365526476,1749751843558,-500.0,0.00023799,2]
[365526477,1749751843570,-285.1011833,0.00023799,2]
[365526478,1749751843581,-449977.82893146,0.000238,2]
[365526479,1749751843592,-302.85999305,0.000238,2]
[365526480,1749751843602,-735.29,0.00023808,2]
[365526481,1749751843615,-460.0,0.00023817,4]
[365526482,1749751843626,-197.78453008,0.00023853,2]
[365526483,1749751843637,-227.0,0.00023871,2]
[365526484,1749751843648,-570.45,0.00023879,4]
[365526485,1749751843659,-212.33176009,0.00023893,2]
[365526486,1749751843670,-2200.0,0.00023899,2]
[365526487,1749751843682,-27530.25120671,0.000239,2]
[365526488,1749751843705,-227.39,0.000239,4]
[365526489,1749751843718,-726.27609543,0.000239,2]
[365526490,1749751843731,-6752.69465058,0.000239,2]
[365526491,1749751843744,-204.53682288,0.000239,10]
[365526492,1749751843757,-209.18732637,0.000239,4]
[365526493,1749751843768,-209.18,0.000239,4]
[365526494,1749751843780,-209.61,0.000239,4]
[365526495,1749751843792,-163.03561172,0.000239,4]
[365526496,1749751843804,-163.03561172,0.000239,4]
[365526497,1749751843815,-163.03,0.000239,4]
[365526498,1749751843827,-500.0,0.0002391,2]
[365526499,1749751843840,-7493.78003198,0.00023943,2]
[365526500,1749751843851,-5000.0,0.00023943,2]
[365526501,1749751843863,-5000.0,0.00023943,2]
[365526502,1749751843875,-40454.07942266,0.0002397,2]
[365526515,1749751845807,-455.75291132,0.0002397,2]
[365526518,1749751845833,-668.27562017,0.0002397,2]
[365526580,1749751920132,194.148134,0.00013699,2]
[365526613,1749752801278,242.09203181,0.000189,2]
[365526630,1749752908522,2903.9751584,0.00019,2]
[365526633,1749752917835,1580.67816763,0.00018,2]
[365526688,1749753032088,-1270.1733818,0.00020087,2]
[365526689,1749753032099,-500.0,0.00020164,2]
[365526690,1749753032111,-194.148134,0.00020187,2]
[365526691,1749753032122,-50.1184587,0.00020896,2]
[365526692,1749753032136,-138.41550302,0.00020896,2]
[365526693,1749753032147,-268.47057754,0.00021,2]
[365526694,1749753032158,-200.80846382,0.00021,2]
[365526695,1749753032168,-352.36128716,0.00021522,2]
[365526697,1749753032180,-606.84252089,0.00021522,2]
[365526699,1749753032193,-196.73619195,0.00021522,2]
[365526702,1749753032357,-318.5677924,0.00021696,2]
[365526703,1749753032366,-159.645973,0.00021707,2]
[365526704,1749753032376,-666.0,0.00021739,2]
[365526705,1749753032385,-281.615006,0.00021755,2]
[365526706,1749753032395,-719.6785603,0.00022055,2]
[365526707,1749753032404,-300.0,0.00022095,2]
[365526708,1749753032414,-1200.0,0.00022095,2]
[365526709,1749753032423,-160.0,0.00022096,2]
[365526710,1749753032434,-453.53692458,0.00022096,2]
[365526717,1749753038125,-391.25479275,0.00022096,2]
[365526718,1749753038135,-424.26423502,0.00022096,2]
[365526719,1749753038144,-835.15920933,0.00022096,2]
[365526720,1749753038154,-500.0,0.00022356,2]
[365526721,1749753038163,-207.4,0.00022751,2]
[365526722,1749753038172,-218.0,0.00022767,2]
[365526723,1749753038182,-218.0,0.00022781,2]
[365526724,1749753038191,-1124.29,0.000231,2]
[365526725,1749753038201,-218.0,0.00023188,2]
[365526726,1749753038210,-155.4138332,0.00023288,2]
[365526727,1749753038220,-2112.90280671,0.00023319,2]
[365526773,1749753043051,-47.09719329,0.00023319,2]
[365526774,1749753043061,-653.0,0.00023319,2]
[365526775,1749753043071,-405.0,0.00023319,2]
[365526776,1749753043081,-963.0,0.00023319,2]
[365526777,1749753043091,-460.0,0.00023489,4]
[365526778,1749753043101,-1030.082381,0.0002349,3]
[365526779,1749753043111,-460.0,0.00023499,2]
[365526780,1749753043120,-460.0,0.00023499,4]
[365526781,1749753043130,-460.0,0.00023499,2]
[365526782,1749753043139,-51274.61267891,0.000237,2]
[365526783,1749753043149,-160.0,0.00023716,2]
[365526784,1749753043159,-229.7508257,0.0002376,2]
[365526785,1749753043169,-460.0,0.00023763,4]
[365526787,1749753043178,-460.0,0.00023773,2]
[365526788,1749753043188,-460.0,0.00023773,4]
[365526789,1749753043197,-41723.98941284,0.00023788,2]
[365526790,1749753043207,-31447.20844292,0.000238,2]
[365526791,1749753043216,-5555.29676291,0.000238,3]
[365526792,1749753043227,-5015.47675308,0.000239,10]
[365526793,1749753043237,-6077.42518554,0.000239,2]
[365526794,1749753043247,-242.09203181,0.000239,2]
[365526795,1749753043257,-19309.33795544,0.000239,2]
[365526796,1749753043266,-204.68409863,0.000239,10]
[365526797,1749753043276,-500.0,0.0002391,2]
[365526798,1749753043285,-2200.0,0.00023933,2]
[365526799,1749753043294,-204.68409846,0.00023942,10]
[365526800,1749753043304,-974945.87978685,0.0002397,2]
[365526801,1749753043314,-250.0,0.0002397,2]
[365526802,1749753043325,-250.0,0.0002397,2]
[365526803,1749753043334,-500.0,0.00023973,2]
[365526804,1749753043343,-201.0,0.0002398,9]
[365526805,1749753043353,-204.68409846,0.00023983,10]
[365526806,1749753043363,-595.46,0.0002399,3]
[365526807,1749753043372,-297.73,0.0002399,3]
[365526808,1749753043381,-893.21,0.0002399,3]
[365526809,1749753043391,-500.0,0.00023999,2]
[365526810,1749753043402,-500.0,0.00023999,2]
[365526811,1749753043412,-167.75101871,0.00023999,2]
[365526812,1749753043422,-381.47358935,0.00023999,2]
[365526813,1749753043433,-500.0,0.00023999,2]
[365526814,1749753043444,-500.0,0.00023999,2]
[365526815,1749753043454,-500.0,0.00023999,2]
[365526816,1749753043463,-500.0,0.00023999,2]
[365526817,1749753043474,-500.0,0.00023999,2]
[365526818,1749753043484,-500.0,0.00023999,2]
[365526819,1749753043493,-300.0,0.00023999,2]
[365526820,1749753043503,-155.0,0.00023999,2]
[365526821,1749753043512,-7764.6989136,0.00024,2]
[365526822,1749753043522,-19075.414812,0.00024,2]
[365526823,1749753043532,-156684.95083598,0.00024,3]
[365526824,1749753043549,-675.78771588,0.00024,3]
[365526834,1749753274819,174.73332,0.00013699,2]
[365526905,1749754232352,-160.47140235,0.00020087,2]
[365526907,1749754232362,-500.0,0.00020164,2]
[365526908,1749754232372,-174.73332,0.00020187,2]
[365526909,1749754232381,-376.77560914,0.00020702,2]
[365526910,1749754232391,-226.06536548,0.00020702,2]
[365526911,1749754232401,-160.47140234,0.00020772,2]
[365526913,1749754232411,-4381.0921058,0.00021342,2]
[365526915,1749754232420,-1141.23,0.00021557,2]
[365526917,1749754232430,-227.0,0.00022065,2]
[365526919,1749754232440,-300.0,0.00022127,2]
[365526921,1749754232449,-160.0,0.00022128,2]
[365526923,1749754232458,-835.15920933,0.00022128,2]
[365526925,1749754232467,-424.26423502,0.00022128,2]
[365526927,1749754232477,-229.7508257,0.00022128,2]
[365526929,1749754232487,-300.0,0.00022129,2]
[365526931,1749754232497,-654.0,0.00022227,2]
[365526934,1749754232507,-186.004,0.00022256,2]
[365526936,1749754232518,-500.0,0.00022356,2]
[365526938,1749754232528,-227.0,0.00022381,2]
[365526940,1749754232537,-654.0,0.00022422,2]
[365526942,1749754232547,-654.0,0.00022467,2]
[365526944,1749754232556,-159.645973,0.00022494,2]
[365526945,1749754232565,-227.0,0.00022516,2]
[365526947,1749754232575,-227.0,0.00022551,2]
[365526949,1749754232585,-227.0,0.00022596,2]
[365526951,1749754232594,-666.0,0.00022673,2]
[365526953,1749754232604,-460.0,0.00022701,4]
[365526955,1749754232613,-460.0,0.0002272,2]
[365526957,1749754232623,-50000.0,0.00022721,2]
[365526959,1749754232633,-168.0,0.00022721,2]
[365526961,1749754232642,-207.4,0.00022751,2]
[365526963,1749754232651,-227.0,0.00022755,2]
[365526965,1749754232661,-654.0,0.00022767,2]
[365526967,1749754232671,-227.0,0.00022786,2]
[365526969,1749754232680,-217.12475435,0.000229,8]
[365526971,1749754232690,-654.0,0.00022935,2]
[365526973,1749754232699,-227.0,0.00022938,2]
[365526974,1749754232709,-217.12475408,0.00022969,8]
[365526975,1749754232718,-460.0,0.00022975,4]
[365526976,1749754232728,-460.0,0.00022994,2]
[365526977,1749754232738,-217.12475408,0.00023038,8]
[365526978,1749754232748,-1011.86,0.000231,2]
[365526979,1749754232757,-217.12475408,0.00023107,8]
[365526980,1749754232767,-217.12475408,0.00023176,8]
[365526981,1749754232776,-217.12475408,0.00023245,8]
[365526982,1749754232786,-460.0,0.00023249,4]
[365526983,1749754232795,-460.0,0.00023268,2]
[365526984,1749754232805,-217.12475408,0.00023314,9]
[365526985,1749754232815,-217.12475408,0.00023383,9]
[365526986,1749754232824,-187.0,0.00023407,2]
[365526987,1749754232834,-187.0,0.00023415,2]
[365526988,1749754232843,-963.0,0.00023422,2]
[365526989,1749754232852,-2160.0,0.00023422,2]
[365526990,1749754232862,-405.0,0.00023422,2]
[365526991,1749754232871,-217.12475408,0.00023452,9]
[365526992,1749754232880,-2282.46,0.00023517,2]
[365526993,1749754232890,-882.927755,0.0002352,3]
[365526994,1749754232899,-217.12475408,0.00023521,9]
[365526995,1749754232908,-460.0,0.00023523,4]
[365526996,1749754232919,-460.0,0.00023542,2]
[365526997,1749754232928,-217.12475408,0.0002359,9]
[365526998,1749754232938,-187.0,0.00023599,2]
[365526999,1749754232947,-217.12475408,0.00023659,9]
[365527000,1749754232956,-217.12475408,0.00023728,9]
[365527001,1749754232966,-160.0,0.00023787,2]
[365527002,1749754232975,-217.12475408,0.00023797,9]
[365527003,1749754232986,-460.0,0.00023797,4]
[365527004,1749754232998,-460.0,0.00023816,2]
[365527006,1749754233008,-217.12475408,0.00023866,10]
[365527008,1749754233018,-465.8,0.0002389,10]
[365527010,1749754233028,-888.26,0.0002389,10]
[365527012,1749754233038,-740.22,0.0002389,10]
[365527014,1749754233047,-186.97104643,0.00023898,2]
[365527016,1749754233057,-460.0,0.00023899,4]
[365527017,1749754233068,-460.0,0.00023899,2]
[365527019,1749754233078,-321.02963412,0.000239,2]
[365527021,1749754233087,-5469.68266695,0.000239,2]
[365527023,1749754233097,-217.12475408,0.00023934,10]
[365527025,1749754233106,-187.0,0.00023947,2]
[365527027,1749754233116,-500.0,0.00023973,2]
[365527029,1749754233125,-297.73,0.0002399,3]
[365527031,1749754233135,-893.19,0.0002399,3]
[365527033,1749754233144,-347.06,0.0002399,3]
[365527035,1749754233154,-173.53,0.0002399,3]
[365527037,1749754233165,-520.61,0.0002399,3]
[365527039,1749754233175,-616.85,0.0002399,10]
[365527041,1749754233184,-162.46212671,0.00024,2]
[365527043,1749754233197,-3719.88733009,0.00024,2]
[365527046,1749754233208,-55.59498901,0.00024,2]
[365527091,1749754238231,-160.47140234,0.00021457,2]
[365527092,1749754238242,-329.27747186,0.00024,2]
[365527100,1749754240432,-514.04,0.0002399,10]
[365527101,1749754240442,-969.74033646,0.00024,2]
[365527102,1749754240485,-8183.09460868,0.00024,2]
[365527103,1749754240495,-2580.90539132,0.00024,3]
[365527104,1749754240506,-45071.29515098,0.00024,3]
[365527114,1749754243276,-186007.55087138,0.00024,3]
[365527364,1749755443388,-500.0,0.00020164,2]
[365527365,1749755443403,-162.743991,0.00020965,2]
[365527366,1749755443415,-207.83432808,0.00021257,2]
[365527367,1749755443425,-300.0,0.00021308,2]
[365527368,1749755443435,-16894.7789318,0.00021309,2]
[365527369,1749755443444,-160.47140234,0.00021472,2]
[365527370,1749755443454,-1127.6,0.00021572,2]
[365527371,1749755443463,-313.31603131,0.000219,2]
[365527372,1749755443474,-460.0,0.00021913,2]
[365527373,1749755443485,-5888.0,0.00021914,2]
[365527374,1749755443495,-168.0,0.00022086,2]
[365527375,1749755443504,-300.0,0.00022138,2]
[365527376,1749755443515,-229.7508257,0.00022139,2]
[365527377,1749755443524,-160.0,0.00022139,2]
[365527378,1749755443534,-835.15920933,0.00022139,2]
[365527379,1749755443544,-424.26423502,0.00022139,2]
[365527380,1749755443553,-160.0,0.00022139,2]
[365527382,1749755443563,-687.51,0.00022168,3]
[365527384,1749755443573,-460.0,0.00022187,2]
[365527386,1749755443582,-323.54650647,0.00022256,2]
[365527388,1749755443591,-687.51,0.00022268,3]
[365527390,1749755443601,-500.0,0.00022356,2]
[365527392,1749755443611,-687.51,0.00022368,7]
[365527394,1749755443621,-460.0,0.00022461,2]
[365527396,1749755443631,-687.51,0.00022468,6]
[365527397,1749755443641,-687.51,0.00022568,7]
[365527398,1749755443651,-323.54650641,0.00022621,2]
[365527399,1749755443661,-687.51,0.00022668,7]
[365527400,1749755443670,-1002.42811948,0.00022672,2]
[365527401,1749755443680,-186.004,0.00022672,2]
[365527402,1749755443689,-460.0,0.00022672,4]
[365527403,1749755443699,-460.0,0.00022672,4]
[365527404,1749755443708,-460.0,0.00022672,4]
[365527405,1749755443718,-460.0,0.00022672,4]
[365527406,1749755443727,-460.0,0.00022672,4]
[365527407,1749755443737,-460.0,0.00022672,4]
[365527408,1749755443750,-460.0,0.00022672,4]
[365527409,1749755443759,-246.553799,0.00022673,2]
[365527410,1749755443769,-11017.6556592,0.00022673,2]
[365527411,1749755443779,-500.7147866,0.00022673,2]
[365527412,1749755443788,-460.0,0.00022735,2]
[365527413,1749755443798,-207.4,0.00022757,2]
[365527414,1749755443807,-5000.0,0.00022757,2]
[365527415,1749755443817,-687.51,0.00022768,7]
[365527416,1749755443826,-687.51,0.00022868,3]
[365527417,1749755443836,-204.85244035,0.000229,8]
[365527418,1749755443845,-460.0,0.00022946,4]
[365527419,1749755443855,-460.0,0.00022946,4]
[365527420,1749755443864,-460.0,0.00022946,4]
[365527421,1749755443873,-460.0,0.00022946,4]
[365527422,1749755443882,-460.0,0.00022946,4]
[365527423,1749755443892,-460.0,0.00022946,4]
[365527424,1749755443901,-460.0,0.00022946,4]
[365527425,1749755443911,-687.51,0.00022968,7]
[365527426,1749755443920,-323.54650641,0.00022985,2]
[365527427,1749755443931,-204.85244021,0.00022995,8]
[365527428,1749755443940,-4672.106265,0.00023,2]
[365527429,1749755443950,-460.0,0.00023009,2]
[365527430,1749755443959,-687.51,0.00023068,3]
[365527431,1749755443969,-204.85244021,0.0002309,8]
[365527432,1749755443979,-460.0,0.00023099,4]
[365527433,1749755443988,-460.0,0.00023099,2]
[365527434,1749755443998,-1057.68,0.000231,2]
[365527435,1749755444007,-687.51,0.00023168,5]
[365527436,1749755444016,-420.0,0.00023171,2]
[365527437,1749755444026,-204.85244021,0.00023186,8]
[365527438,1749755444035,-535.9398668,0.00023219,2]
[365527439,1749755444044,-405.10432001,0.00023219,2]
[365527440,1749755444053,-460.0,0.0002322,4]
[365527441,1749755444063,-460.0,0.0002322,4]
[365527442,1749755444072,-460.0,0.0002322,4]
[365527443,1749755444081,-460.0,0.0002322,4]
[365527444,1749755444090,-460.0,0.0002322,4]
[365527445,1749755444099,-460.0,0.0002322,4]
[365527446,1749755444108,-460.0,0.0002322,4]
[365527447,1749755444118,-687.51,0.00023268,4]
[365527448,1749755444127,-204.85244021,0.00023281,8]
[365527449,1749755444137,-460.0,0.00023283,2]
[365527450,1749755444147,-5000.0,0.00023305,2]
[365527451,1749755444156,-323.54650641,0.0002335,2]
[365527452,1749755444165,-687.51,0.00023368,3]
[365527453,1749755444175,-460.0,0.00023373,4]
[365527454,1749755444187,-460.0,0.00023373,2]
[365527455,1749755444196,-204.85244021,0.00023376,9]
[365527456,1749755444207,-577.332,0.00023422,2]
[365527457,1749755444217,-405.0,0.00023422,2]
[365527458,1749755444227,-687.51,0.00023468,5]
[365527459,1749755444237,-204.85244021,0.00023471,9]
[365527460,1749755444247,-380.0,0.00023494,4]
[365527461,1749755444257,-460.0,0.00023494,4]
[365527462,1749755444266,-594.49813472,0.00023494,4]
[365527463,1749755444276,-380.0,0.00023494,4]
[365527464,1749755444286,-380.0,0.00023494,4]
[365527465,1749755444296,-380.0,0.00023494,4]
[365527466,1749755444305,-460.0,0.00023494,4]
[365527467,1749755444315,-756.795219,0.0002352,3]
[365527468,1749755444325,-2255.21,0.00023533,2]
[365527469,1749755444335,-460.0,0.00023557,2]
[365527470,1749755444344,-204.85244021,0.00023567,9]
[365527471,1749755444354,-687.51,0.00023568,7]
[365527472,1749755444363,-460.0,0.00023647,4]
[365527473,1749755444373,-440.0,0.00023647,2]
[365527474,1749755444383,-204.85244021,0.00023662,9]
[365527475,1749755444393,-687.51,0.00023668,3]
[365527476,1749755444404,-323.54650641,0.00023714,2]
[365527477,1749755444414,-204.85244021,0.00023757,9]
[365527478,1749755444424,-687.51,0.00023768,4]
[365527479,1749755444435,-393.72,0.00023768,4]
[365527480,1749755444445,-460.0,0.00023768,4]
[365527481,1749755444455,-460.0,0.00023831,2]
[365527482,1749755444465,-204.85244021,0.00023852,10]
[365527483,1749755444476,-687.51,0.00023868,3]
[365527484,1749755444486,-428.36,0.0002389,10]
[365527485,1749755444495,-4922.7144003,0.000239,2]
[365527486,1749755444506,-481.54445114,0.000239,2]
[365527487,1749755444515,-12872.8919703,0.000239,2]
[365527488,1749755444525,-460.0,0.00023921,4]
[365527489,1749755444534,-729.9949474,0.00023945,2]
[365527490,1749755444544,-204.85244021,0.00023948,10]